Workbook

Sheet TOT-0116
B2: ANEXO IV al Memorandum D.T.E.E. N° 687/ 2016
A4: ENTE NACIONAL REGULADOR
A5: DE LA ELECTRICIDAD
B7: SISTEMA DE TRANSPORTE DE ENERGÍA ELÉCTRICA POR DISTRIBUCIÓN TRONCAL
B9: EPEN
B11: =CONCATENATE("TOTAL DE PENALIZACIONES A ",IF(DATO!$F$1="E.N.R.E.","APLICAR","FORMULAR")) -> TOTAL DE PENALIZACIONES A APLICAR
B13: =IF(C13=TRUE,2,1) -> 1
B14: Desde el 01 al 31 de enero de 2016
C18: 1.- | D18: LÍNEAS | I18: ='LI-01 (1)'!AB40 -> 93095
C20: 2.- | D20: CONEXIÓN
D22: 2.1.- | E22: Transformación | I22: ='T-01 (1)'!AC45 -> 20842.46
D24: 2.2.- | E24: Salidas | I24: ='SA-01 (2)'!V42 -> 35826.49
F28: TOTAL | G28: =SUM(I18:I24) -> 149763.95
C30: Valores de remuneración según el Acuerdo Instrumental. Nota ENRE Nº 117663

Sheet LI-01 (1)
B2: =+'TOT-0116'!B2 -> ANEXO IV al Memorandum D.T.E.E. N° 687/ 2016
D4: ENTE NACIONAL REGULADOR
D5: DE LA ELECTRICIDAD
F8: SISTEMA DE TRANSPORTE DE ENERGÍA ELÉCTRICA POR DISTRIBUCIÓN TRONCAL - EPEN
F10: 1.- LÍNEAS
B12: =+'TOT-0116'!B14 -> Desde el 01 al 31 de enero de 2016
F14: $/100 km-h : LÍNEAS 132 kV | G14: 498.71 | K14: FACTOR DE PENALIZACIÓN K = | L14: =30*'TOT-0116'!B13 -> 30 | M14: =IF(L14=30," ",IF(L14=60,"Coeficiente duplicado por tasa de falla >4 Sal. x año/100 km.","REVISAR COEFICIENTE")) -> 
C15: 3 | D15: 4 | E15: 5 | F15: 6 | G15: 7 | H15: 8 | I15: 9 | J15: 10 | K15: 11 | L15: 12 | M15: 13 | N15: 14 | O15: 15 | P15: 16 | Q15: 17 | R15: 18 | S15: 19 | T15: 20 | U15: 21 | V15: 22 | W15: 23 | X15: 24 | Y15: 25 | Z15: 26 | AA15: 27 | AB15: 28
C16: N° | D16: INDISP | E16: ID EQUIPO | F16: LÍNEAS | G16: U [kV] | H16: Long. [km] | I16: $/h | J16: Salida | K16: Entrada | L16: Hs. Indisp. | M16: Minutos Indisp. | N16: Tipo Sal.(²) | O16: C.R. % | P16: AUT. | Q16: PENALIZ. PROGRAM. | R16: REDUCCIÓN PROGRAM. | S16: PENALIZACIÓN FORZADA Por Salida 1ras. 3 hs. hs. Restantes | V16: REDUCCIÓN FORZADA Por Salida 1ras. 3 hs. hs. Restantes | Y16: RESTANTE FORZADA (RF) | Z16: REDUCCIÓN RESTANTE (RR) | AA16: Informó en Térm. | AB16: TOTAL PENALIZAC.
C19: 1 | D19: 297407 | E19: 150 | F19: ALTO VALLE - CENTENARIO | G19: 132 | H19: 16.60000038 | I19: =H19*$G$14/100 -> 82.7858619 | J19: 2016-01-02T23:43:00 | K19: 2016-01-02T23:50:00 | L19: =IF(J19="","",(K19-J19)*24) -> 0.1166666667 | M19: =IF(K19="","",ROUND((K19-J19)*24*60,0)) -> 7 | N19: F | O19: 0,000 | P19: =IF(F19="","",IF(OR(N19="P",N19="RP"),"--","NO")) -> NO | Q19: =IF(N19="P",ROUND(M19/60,2)*I19*$L$14*0.01,"--") -> -- | R19: =IF(N19="RP",ROUND(M19/60,2)*I19*$L$14*0.01*O19/100,"--") -> -- | S19: =IF(P19="SI","--",IF(N19="F",ROUND(I19*$L$14,2),"--")) -> 2483.58 | T19: =IF(N19="F",IF(M19<10,"--",IF(M19>180,ROUND(I19*$L$14*3,2),I19*$L$14*ROUND(M19/60,2))),"--") -> -- | U19: =IF(AND(N19="F",M19>180),I19*$L$14*0.1*(ROUND(M19/60,2)-3),"--") -> -- | V19: =IF(P19="SI","--",IF(N19="R",ROUND(I19*$L$14*O19/100,2),"--")) -> -- | W19: =IF(N19="R",IF(M19<10,"--",IF(M19>180,ROUND(I19*$L$14*3*O19/100,2),I19*$L$14*O19/100*ROUND(M19/60,2))),"--") -> -- | X19: =IF(AND(N19="R",M19>180),I19*$L$14*O19/100*0.1*(ROUND(M19/60,2)-3),"--") -> -- | Y19: =IF(N19="RF",I19*$L$14*0.1*ROUND(M19/60,2),"--") -> -- | Z19: =IF(N19="RR",I19*$L$14*0.1*O19/100*ROUND(M19/60,2),"--") -> -- | AA19: SI | AB19: =IF(F19="","",IF(AA19="SI",SUM(Q19:Z19),2*SUM(Q19:Z19))) -> 2483.58
C20: 2 | D20: 297408 | E20: 150 | F20: ALTO VALLE - CENTENARIO | G20: 132 | H20: 16.60000038 | I20: =H20*$G$14/100 -> 82.7858619 | J20: 2016-01-03T10:09:00 | K20: 2016-01-03T16:12:00 | L20: 6.05 | M20: 363 | N20: F | O20: 0,000 | P20: NO | Q20: -- | R20: -- | S20: 2483.58 | T20: 7450.73 | U20: 757.4906364 | V20: -- | W20: -- | X20: -- | Y20: -- | Z20: -- | AA20: SI | AB20: 10691.80064
C21: 3 | D21: 297410 | E21: 4655 | F21: TRAPIAL LOMA L.LATA 1 | G21: 132 | H21: 140 | I21: 698.194 | J21: 2016-01-06T10:47:00 | K21: 2016-01-06T12:02:00 | L21: 1.25 | M21: 75 | N21: P | O21: 0,000 | P21: -- | Q21: 261.82275 | R21: -- | S21: -- | T21: -- | U21: -- | V21: -- | W21: -- | X21: -- | Y21: -- | Z21: -- | AA21: SI | AB21: 261.82275
C22: 4 | D22: 297841 | E22: 150 | F22: ALTO VALLE - CENTENARIO | G22: 132 | H22: 16.60000038 | I22: 82.7858619 | J22: 2016-01-11T08:31:00 | K22: 2016-01-11T16:29:00 | L22: 7.966666667 | M22: 478 | N22: P | O22: 0,000 | P22: -- | Q22: 197.9409958 | R22: -- | S22: -- | T22: -- | U22: -- | V22: -- | W22: -- | X22: -- | Y22: -- | Z22: -- | AA22: SI | AB22: 197.9409958
C23: 5 | D23: 297818 | E23: 160 | F23: CHOCON OESTE - CHOCON | G23: 132 | H23: 3.5 | I23: 17.45485 | J23: 2016-01-19T09:27:00 | K23: 2016-01-19T14:44:00 | L23: 5.283333333 | M23: 317 | N23: P | O23: 0,000 | P23: -- | Q23: 27.6484824 | R23: -- | S23: -- | T23: -- | U23: -- | V23: -- | W23: -- | X23: -- | Y23: -- | Z23: -- | AA23: SI | AB23: 27.6484824
C24: 6 | D24: 297830 | E24: 4655 | F24: TRAPIAL LOMA L.LATA 1 | G24: 132 | H24: 140 | I24: 698.194 | J24: 2016-01-23T21:59:00 | K24: 2016-01-23T22:18:00 | L24: 0.3166666667 | M24: 19 | N24: F | O24: 0,000 | P24: NO | Q24: -- | R24: -- | S24: 20945.82 | T24: 6702.6624 | U24: -- | V24: -- | W24: -- | X24: -- | Y24: -- | Z24: -- | AA24: SI | AB24: 27648.4824
C25: 7 | D25: 297831 | E25: 4656 | F25: TRAPIAL LOMA L.LATA 2 | G25: 132 | H25: 140 | I25: 698.194 | J25: 2016-01-23T21:59:00 | K25: 2016-01-23T22:24:00 | L25: 0.4166666666 | M25: 25 | N25: F | O25: 0,000 | P25: NO | Q25: -- | R25: -- | S25: 20945.82 | T25: 8797.2444 | U25: -- | V25: -- | W25: -- | X25: -- | Y25: -- | Z25: -- | AA25: SI | AB25: 29743.0644
C26: 8 | D26: 298499 | E26: 5028 | F26: P. SECC. - RINCON DE LOS SAUCES | G26: 132 | H26: 69 | I26: 344.1099 | J26: 2016-01-26T22:08:00 | K26: 2016-01-26T22:13:00 | L26: 0.08333333326 | M26: 5 | N26: F | O26: 0,000 | P26: NO | Q26: -- | R26: -- | S26: 10323.3 | T26: -- | U26: -- | V26: -- | W26: -- | X26: -- | Y26: -- | Z26: -- | AA26: =IF(F26="","","SI") -> SI | AB26: 10323.3
C27: 9 | D27: 298500 | E27: 168 | F27: P.SECC. - MEDANITOS | G27: 132 | H27: 41 | I27: 204.4711 | J27: 2016-01-26T22:08:00 | K27: 2016-01-26T22:13:00 | L27: 0.08333333326 | M27: 5 | N27: F | O27: 0,000 | P27: NO | Q27: -- | R27: -- | S27: 6134.13 | T27: -- | U27: -- | V27: -- | W27: -- | X27: -- | Y27: -- | Z27: -- | AA27: SI | AB27: 6134.13
C28: 10 | D28: 298512 | E28: 5028 | F28: P. SECC. - RINCON DE LOS SAUCES | G28: 132 | H28: 69 | I28: 344.1099 | J28: 2016-01-30T09:22:00 | K28: 2016-01-30T16:44:00 | L28: 7.366666667 | M28: 442 | N28: P | O28: 0,000 | P28: -- | Q28: 760.8269889 | R28: -- | S28: -- | T28: -- | U28: -- | V28: -- | W28: -- | X28: -- | Y28: -- | Z28: -- | AA28: SI | AB28: 760.8269889
C29: 11 | D29: 298513 | E29: 5029 | F29: RINCON DE LOS SAUCES - P. HERNANDEZ | G29: 132 | H29: 21 | I29: 104.7291 | J29: 2016-01-30T09:28:00 | K29: 2016-01-30T16:43:00 | L29: 7.25 | M29: 435 | N29: P | O29: 0,000 | P29: -- | Q29: 227.7857925 | R29: -- | S29: -- | T29: -- | U29: -- | V29: -- | W29: -- | X29: -- | Y29: -- | Z29: -- | AA29: SI | AB29: 227.7857925
C30: 12 | D30: 298516 | E30: 150 | F30: ALTO VALLE - CENTENARIO | G30: 132 | H30: 16.6 | I30: 82.78586 | J30: 2016-01-30T17:30:00 | K30: 2016-01-30T18:21:00 | L30: 0.85 | M30: 51 | N30: F | O30: 0,000 | P30: NO | Q30: -- | R30: -- | S30: 2483.58 | T30: 2111.03943 | U30: -- | V30: -- | W30: -- | X30: -- | Y30: -- | Z30: -- | AA30: SI | AB30: 4594.61943
I31: 0 | O31: =IF(F31="","","--") ->  | Q31: -- | R31: -- | S31: -- | T31: -- | U31: -- | V31: -- | W31: -- | X31: -- | Y31: -- | Z31: --
I32: 0 | Q32: -- | R32: -- | S32: -- | T32: -- | U32: -- | V32: -- | W32: -- | X32: -- | Y32: -- | Z32: --
I33: 0 | Q33: -- | R33: -- | S33: -- | T33: -- | U33: -- | V33: -- | W33: -- | X33: -- | Y33: -- | Z33: --
I34: 0 | Q34: -- | R34: -- | S34: -- | T34: -- | U34: -- | V34: -- | W34: -- | X34: -- | Y34: -- | Z34: --
I35: 0 | Q35: -- | R35: -- | S35: -- | T35: -- | U35: -- | V35: -- | W35: -- | X35: -- | Y35: -- | Z35: --
I36: 0 | Q36: -- | R36: -- | S36: -- | T36: -- | U36: -- | V36: -- | W36: -- | X36: -- | Y36: -- | Z36: --
I37: 0 | Q37: -- | R37: -- | S37: -- | T37: -- | U37: -- | V37: -- | W37: -- | X37: -- | Y37: -- | Z37: --
I38: 0 | Q38: -- | R38: -- | S38: -- | T38: -- | U38: -- | V38: -- | W38: -- | X38: -- | Y38: -- | Z38: --
C40: (²) | D40: P - PROGRAMADA ; F - FORZADA | AB40: =ROUND(SUM(AB17:AB39),2) -> 93095

Sheet T-01 (1)
B2: =+'TOT-0116'!B2 -> ANEXO IV al Memorandum D.T.E.E. N° 687/ 2016
D4: ENTE NACIONAL REGULADOR
D5: DE LA ELECTRICIDAD
F8: SISTEMA DE TRANSPORTE DE ENERGÍA ELÉCTRICA POR DISTRIBUCIÓN TRONCAL - EPEN
F10: 2.- CONEXIÓN
F12: 2.1.- Transformación
B14: =+'TOT-0116'!B14 -> Desde el 01 al 31 de enero de 2016
F16: Por Transformador por MVA $ = | I16: 1.752
F17: Coeficiente de penalización por salida forzada = | I17: =30*'TOT-0116'!B13 -> 30 | K17: =IF(I17=30," ",IF(I17=60," Coeficiente duplicado por tasa de falla >4 Sal. x año/100 km."," REVISAR COEFICIENTE")) -> 
C18: 3 | D18: 4 | E18: 5 | F18: 6 | G18: 7 | H18: 8 | I18: 9 | J18: 10 | K18: 11 | L18: 12 | M18: 13 | N18: 14 | O18: 15 | P18: 16 | Q18: 17 | R18: 18 | S18: 19 | T18: 20 | U18: 21 | V18: 22 | W18: 23 | X18: 24 | Y18: 25 | Z18: 26 | AA18: 27 | AB18: 28 | AC18: 29
C19: N° | D19: INDISP | E19: ID EQUIPO | F19: ESTACIÓN TRANSFORMADORA | G19: EQUIPO | H19: POT. [ MVA ] | I19: U [ kV ] | J19: $/h | K19: Salida | L19: Entrada | M19: Hs Indisp. | N19: Minutos. Indisp. | O19: Tipo Sal.(²) | P19: AUT. | Q19: C.R. % | R19: E.N.S. | S19: K (P;ENS) | T19: PENALIZ. PROGRAM. | U19: REDUCCIÓN PROGRAM. | V19: PENALIZACIÓN FORZADA Por Salida hs. Restantes | X19: REDUCCIÓN FORZADA Por Salida hs. Restantes | Z19: RESTANTE FORZADA | AA19: REDUCCIÓN RESTANTE | AB19: Informó en Térm. | AC19: TOTAL PENALIZAC.
C22: 13 | D22: 297413 | E22: 196 | F22: COLONIA VALENTINA | G22: TRAFO 1 | H22: 15 | I22: 132/33/13,2 | J22: =H22*$I$16 -> 26.28 | K22: 2016-01-06T18:34:00 | L22: 2016-01-06T19:38:00 | M22: =IF(K22="","",(L22-K22)*24) -> 1.066666667 | N22: =IF(L22="","",ROUND((L22-K22)*24*60,0)) -> 64 | O22: F | P22: =IF(O22="","",IF(OR(O22="P",O22="RP"),"--","NO")) -> NO | Q22: 0,000 | R22: NO | S22: =$I$17*IF(R22="SI",1,0.1)*IF(OR(O22="P",O22="RP"),0.1,1) -> 3 | T22: =IF(O22="P",J22*S22*ROUND(N22/60,2),"--") -> -- | U22: =IF(O22="RP",J22*S22*Q22/100*ROUND(N22/60,2),"--") -> -- | V22: =IF(AND(O22="F",P22="NO"),J22*S22,"--") -> 78.84 | W22: =IF(O22="F",J22*S22*ROUND(N22/60,2),"--") -> 84.3588 | X22: =IF(AND(O22="R",P22="NO"),J22*S22*Q22/100,"--") -> -- | Y22: =IF(O22="R",J22*S22*ROUND(N22/60,2)*Q22/100,"--") -> -- | Z22: =IF(O22="RF",J22*S22*ROUND(N22/60,2),"--") -> -- | AA22: =IF(O22="RR",J22*S22*ROUND(N22/60,2)*Q22/100,"--") -> -- | AB22: SI | AC22: =IF(F22="","",SUM(T22:AA22)*IF(AB22="SI",1,2)) -> 163.1988
C23: 14 | D23: 297842 | E23: 176 | F23: ALTO VALLE | G23: TRAFO 2 | H23: 30 | I23: 132/33/13,2 | J23: =H23*$I$16 -> 52.56 | K23: 2016-01-14T12:05:00 | L23: 2016-01-14T12:28:00 | M23: =IF(K23="","",(L23-K23)*24) -> 0.3833333334 | N23: =IF(L23="","",ROUND((L23-K23)*24*60,0)) -> 23 | O23: F | P23: =IF(O23="","",IF(OR(O23="P",O23="RP"),"--","NO")) -> NO | Q23: 0,000 | R23: SI | S23: =$I$17*IF(R23="SI",1,0.1)*IF(OR(O23="P",O23="RP"),0.1,1) -> 30 | T23: =IF(O23="P",J23*S23*ROUND(N23/60,2),"--") -> -- | U23: =IF(O23="RP",J23*S23*Q23/100*ROUND(N23/60,2),"--") -> -- | V23: =IF(AND(O23="F",P23="NO"),J23*S23,"--") -> 1576.8 | W23: =IF(O23="F",J23*S23*ROUND(N23/60,2),"--") -> 599.184 | X23: =IF(AND(O23="R",P23="NO"),J23*S23*Q23/100,"--") -> -- | Y23: =IF(O23="R",J23*S23*ROUND(N23/60,2)*Q23/100,"--") -> -- | Z23: =IF(O23="RF",J23*S23*ROUND(N23/60,2),"--") -> -- | AA23: =IF(O23="RR",J23*S23*ROUND(N23/60,2)*Q23/100,"--") -> -- | AB23: SI | AC23: 2175.984
C24: 15 | D24: 297843 | E24: 3601 | F24: ALTO VALLE | G24: TRAFO 6 | H24: 30 | I24: 132/33/13,2 | J24: =H24*$I$16 -> 52.56 | K24: 2016-01-14T12:05:00 | L24: 2016-01-14T12:28:00 | M24: 0.3833333334 | N24: 23 | O24: F | P24: NO | Q24: 0,000 | R24: SI | S24: =$I$17*IF(R24="SI",1,0.1)*IF(OR(O24="P",O24="RP"),0.1,1) -> 30 | T24: -- | U24: -- | V24: =IF(AND(O24="F",P24="NO"),J24*S24,"--") -> 1576.8 | W24: =IF(O24="F",J24*S24*ROUND(N24/60,2),"--") -> 599.184 | X24: =IF(AND(O24="R",P24="NO"),J24*S24*Q24/100,"--") -> -- | Y24: =IF(O24="R",J24*S24*ROUND(N24/60,2)*Q24/100,"--") -> -- | Z24: =IF(O24="RF",J24*S24*ROUND(N24/60,2),"--") -> -- | AA24: =IF(O24="RR",J24*S24*ROUND(N24/60,2)*Q24/100,"--") -> -- | AB24: SI | AC24: 2175.984
C25: 16 | D25: 297819 | E25: 196 | F25: COLONIA VALENTINA | G25: TRAFO 1 | H25: 15 | I25: 132/33/13,2 | J25: 26.28 | K25: 2016-01-20T22:35:00 | L25: 2016-01-20T23:54:00 | M25: 1.316666667 | N25: 79 | O25: F | P25: NO | Q25: 0,000 | R25: NO | S25: 3 | T25: -- | U25: -- | V25: 78.84 | W25: 104.0688 | X25: -- | Y25: -- | Z25: -- | AA25: -- | AB25: SI | AC25: 182.9088
C26: 17 | D26: 297823 | E26: 196 | F26: COLONIA VALENTINA | G26: TRAFO 1 | H26: 15 | I26: 132/33/13,2 | J26: 26.28 | K26: 2016-01-21T13:35:00 | L26: 2016-01-21T14:24:00 | M26: 0.8166666667 | N26: 49 | O26: F | P26: NO | Q26: 0,000 | R26: SI | S26: 30 | T26: -- | U26: -- | V26: 788.4 | W26: 646.488 | X26: -- | Y26: -- | Z26: -- | AA26: -- | AB26: SI | AC26: 1434.888
C27: 18 | D27: 297824 | E27: 196 | F27: COLONIA VALENTINA | G27: TRAFO 1 | H27: 15 | I27: 132/33/13,2 | J27: 26.28 | K27: 2016-01-21T14:43:00 | L27: 2016-01-21T14:52:00 | M27: 0.15 | N27: 9 | O27: F | P27: NO | Q27: 0,000 | R27: SI | S27: 30 | T27: -- | U27: -- | V27: 788.4 | W27: 118.26 | X27: -- | Y27: -- | Z27: -- | AA27: -- | AB27: SI | AC27: 906.66
C28: 19 | D28: 297828 | E28: 3601 | F28: ALTO VALLE | G28: TRAFO 6 | H28: 30 | I28: 132/33/13,2 | J28: 52.56 | K28: 2016-01-22T06:34:00 | L28: 2016-01-22T09:26:00 | M28: 2.866666667 | N28: 172 | O28: P | P28: -- | Q28: 0,000 | R28: NO | S28: 0.3 | T28: 45.25416 | U28: -- | V28: -- | W28: -- | X28: -- | Y28: -- | Z28: -- | AA28: -- | AB28: SI | AC28: 45.25416
C29: 20 | D29: 297829 | E29: 196 | F29: COLONIA VALENTINA | G29: TRAFO 1 | H29: 15 | I29: 132/33/13,2 | J29: 26.28 | K29: 2016-01-22T20:01:00 | L29: 2016-01-22T20:51:00 | M29: 0.8333333334 | N29: 50 | O29: F | P29: NO | Q29: 0,000 | R29: SI | S29: 30 | T29: -- | U29: -- | V29: 788.4 | W29: 654.372 | X29: -- | Y29: -- | Z29: -- | AA29: -- | AB29: SI | AC29: 1442.772
C30: 21 | D30: 298498 | E30: 3601 | F30: ALTO VALLE | G30: TRAFO6 | H30: 30 | I30: 132/33/13,2 | J30: 52.56 | K30: 2016-01-21T21:20:00 | L30: 2016-01-21T21:58:00 | M30: 0.6333333333 | N30: 38 | O30: F | P30: NO | Q30: 0,000 | R30: SI | S30: 30 | T30: -- | U30: -- | V30: 1576.8 | W30: 993.384 | X30: -- | Y30: -- | Z30: -- | AA30: -- | AB30: =IF(F30="","","SI") -> SI | AC30: 2570.184
C31: 22 | D31: 298509 | E31: 177 | F31: P.P. BANDERITA | G31: TRAFO 1 | H31: 15 | I31: 132/33/13,2 | J31: 26.28 | K31: 2016-01-28T19:40:00 | L31: 2016-01-28T19:59:00 | M31: 0.3166666667 | N31: 19 | O31: F | P31: NO | Q31: 0,000 | R31: SI | S31: 30 | T31: -- | U31: -- | V31: 788.4 | W31: 252.288 | X31: -- | Y31: -- | Z31: -- | AA31: -- | AB31: SI | AC31: 1040.688
C32: 23 | D32: 298514 | E32: 3601 | F32: ALTO VALLE | G32: TRAFO 6 | H32: 30 | I32: 132/33/13,2 | J32: 52.56 | K32: 2016-01-30T17:29:00 | L32: 2016-01-30T19:15:00 | M32: 1.766666667 | N32: 106 | O32: F | P32: NO | Q32: 0,000 | R32: SI | S32: =$I$17*IF(R32="SI",1,0.1)*IF(OR(O32="P",O32="RP"),0.1,1) -> 30 | T32: =IF(O32="P",J32*S32*ROUND(N32/60,2),"--") -> -- | U32: =IF(O32="RP",J32*S32*Q32/100*ROUND(N32/60,2),"--") -> -- | V32: =IF(AND(O32="F",P32="NO"),J32*S32,"--") -> 1576.8 | W32: =IF(O32="F",J32*S32*ROUND(N32/60,2),"--") -> 2790.936 | X32: =IF(AND(O32="R",P32="NO"),J32*S32*Q32/100,"--") -> -- | Y32: =IF(O32="R",J32*S32*ROUND(N32/60,2)*Q32/100,"--") -> -- | Z32: =IF(O32="RF",J32*S32*ROUND(N32/60,2),"--") -> -- | AA32: =IF(O32="RR",J32*S32*ROUND(N32/60,2)*Q32/100,"--") -> -- | AB32: =IF(F32="","","SI") -> SI | AC32: 4367.736
C33: 24 | D33: 298515 | E33: 176 | F33: ALTO VALLE | G33: TRAFO 2 | H33: 30 | I33: 132/33/13,2 | J33: 52.56 | K33: 2016-01-30T17:29:00 | L33: 2016-01-30T19:14:00 | M33: 1.75 | N33: 105 | O33: F | P33: NO | Q33: 0,000 | R33: SI | S33: 30 | T33: -- | U33: -- | V33: 1576.8 | W33: 2759.4 | X33: -- | Y33: -- | Z33: -- | AA33: -- | AB33: SI | AC33: 4336.2
J34: 0 | Q34: =IF(F34="","","--") ->  | S34: 3 | T34: -- | U34: -- | V34: -- | W34: -- | X34: -- | Y34: -- | Z34: -- | AA34: -- | AC34: =IF(F34="","",SUM(T34:AA34)*IF(AB34="SI",1,2)) -> 
J35: 0 | S35: 3 | T35: -- | U35: -- | V35: -- | W35: -- | X35: -- | Y35: -- | Z35: -- | AA35: --
J36: 0 | S36: 3 | T36: -- | U36: -- | V36: -- | W36: -- | X36: -- | Y36: -- | Z36: -- | AA36: --
J37: 0 | S37: 3 | T37: -- | U37: -- | V37: -- | W37: -- | X37: -- | Y37: -- | Z37: -- | AA37: --
J38: 0 | S38: 3 | T38: -- | U38: -- | V38: -- | W38: -- | X38: -- | Y38: -- | Z38: -- | AA38: --
J39: 0 | S39: 3 | T39: -- | U39: -- | V39: -- | W39: -- | X39: -- | Y39: -- | Z39: -- | AA39: --
J40: 0 | S40: 3 | T40: -- | U40: -- | V40: -- | W40: -- | X40: -- | Y40: -- | Z40: -- | AA40: --
J41: 0 | S41: 3 | T41: -- | U41: -- | V41: -- | W41: -- | X41: -- | Y41: -- | Z41: -- | AA41: --
J42: 0 | S42: 3 | T42: -- | U42: -- | V42: -- | W42: -- | X42: -- | Y42: -- | Z42: -- | AA42: --
J43: 0 | S43: 3 | T43: =IF(O43="P",J43*S43*ROUND(N43/60,2),"--") -> -- | U43: -- | V43: -- | W43: -- | X43: -- | Y43: -- | Z43: -- | AA43: --
C45: (²) | D45: P - PROGRAMADA ; F - FORZADA | AC45: =ROUND(SUM(AC20:AC44),2) -> 20842.46

Sheet SA-01 (1)
B2: =+'TOT-0116'!B2 -> ANEXO IV al Memorandum D.T.E.E. N° 687/ 2016
D4: ENTE NACIONAL REGULADOR
D5: DE LA ELECTRICIDAD
F8: SISTEMA DE TRANSPORTE DE ENERGÍA ELÉCTRICA POR DISTRIBUCIÓN TRONCAL - EPEN
F10: 2.2.- Salidas
B12: =+'TOT-0116'!B14 -> Desde el 01 al 31 de enero de 2016
F14: Salida en 132 kV = | G14: 23.195 | H14: =50*'TOT-0116'!B13 -> 50 | J14: =IF(H14=50," ",IF(H14=100," Coeficiente duplicado por tasa de falla >4 Sal. x año/100 km.","REVISAR COEFICIENTE")) -> 
F15: Salida en 33 kV = | G15: 17.396 | H15: =25*'TOT-0116'!B13 -> 25 | J15: =IF(H15=25," ",IF(H15=50," Coeficiente duplicado por tasa de falla >4 Sal. x año/100 km.","REVISAR COEFICIENTE")) -> 
F16: Salida en 13,2 kV = | G16: 17.396 | H16: =20*'TOT-0116'!B13 -> 20 | J16: =IF(H16=20," ",IF(H16=40," Coeficiente duplicado por tasa de falla >4 Sal. x año/100 km.","REVISAR COEFICIENTE")) -> 
C17: 3 | D17: 4 | E17: 5 | F17: 6 | G17: 7 | H17: 8 | I17: 9 | J17: 10 | K17: 11 | L17: 12 | M17: 13 | N17: 14 | O17: 15 | P17: 16 | Q17: 17 | R17: 18 | S17: 19 | T17: 20 | U17: 21 | V17: 22
C18: N° | D18: INDISP | E18: ID EQUIPO | F18: ESTACIÓN TRANSFORMADORA | G18: EQUIPO | H18: U [kV] | I18: $/h | J18: Salida | K18: Entrada | L18: Hs Indisp. | M18: Minutos. Indisp. | N18: Tipo Sal.(²) | O18: AUT. | P18: K (U) | Q18: PENALIZ. PROGRAM. | R18: PENALIZAC. FORZADA Por Salida Hs. Restantes | T18: RESTANTE FORZADA | U18: Informó en Térm. | V18: TOTAL PENALIZAC.
C20: 25 | D20: 297403 | E20: 200 | F20: ALTO VALLE | G20: SALIDA ALIMENT. N° 5 EDERSA | H20: 13.19999981 | I20: =IF(OR(H20=132,H20=66),$G$14,IF(H20=33,$G$15,$G$16)) -> 17.396 | J20: 2016-01-01T13:07:00 | K20: 2016-01-01T17:10:00 | L20: =IF(J20="","",(K20-J20)*24) -> 4.05 | M20: =IF(K20="","",ROUND((K20-J20)*24*60,0)) -> 243 | N20: F | O20: =IF(N20="","",IF(OR(N20="P",N20="RP"),"--","NO")) -> NO | P20: =IF(OR(H20=132,H20=66),$H$14,IF(H20=33,$H$15,$H$16)) -> 20 | Q20: =IF(N20="P",I20*P20*0.1*ROUND(M20/60,2),"--") -> -- | R20: =IF(O20="NO",IF(N20="F",I20*P20,"--"),"--") -> 347.92 | S20: =IF(N20="F",I20*P20*ROUND(M20/60,2),"--") -> 1409.076 | T20: =IF(N20="RF",I20*P20*ROUND(M20/60,2),"--") -> -- | U20: SI | V20: =IF(F20="","",IF(H20="500/220",0,IF(U20="SI",SUM(Q20:T20),2*SUM(Q20:T20)))) -> 1756.996
C21: 26 | D21: 297404 | E21: 202 | F21: ALTO VALLE | G21: SALIDA ALIMENT. N° 7 EDERSA | H21: 13.19999981 | I21: =IF(OR(H21=132,H21=66),$G$14,IF(H21=33,$G$15,$G$16)) -> 17.396 | J21: 2016-01-01T13:29:00 | K21: 2016-01-01T18:17:00 | L21: 4.8 | M21: 288 | N21: F | O21: =IF(N21="","",IF(OR(N21="P",N21="RP"),"--","NO")) -> NO | P21: 20 | Q21: -- | R21: 347.92 | S21: 1670.016 | T21: -- | U21: SI | V21: 2017.936
C22: 27 | D22: 297405 | E22: 200 | F22: ALTO VALLE | G22: SALIDA ALIMENT. N° 5 EDERSA | H22: 13.19999981 | I22: 17.396 | J22: 2016-01-01T17:11:00 | K22: 2016-01-01T17:16:00 | L22: 0.08333333343 | M22: 5 | N22: F | O22: NO | P22: 20 | Q22: -- | R22: 347.92 | S22: 27.8336 | T22: -- | U22: SI | V22: 375.7536
C23: 28 | D23: 297406 | E23: 233 | F23: ARROYITO | G23: SALIDA EPEN | H23: 13.19999981 | I23: 17.396 | J23: 2016-01-02T22:14:00 | K23: 2016-01-03T00:25:00 | L23: 2.183333333 | M23: 131 | N23: F | O23: NO | P23: 20 | Q23: -- | R23: 347.92 | S23: 758.4656 | T23: -- | U23: SI | V23: 1106.3856
C24: 29 | D24: 297409 | E24: 231 | F24: ARROYITO | G24: SALIDA LINEA AGUA CAJON 1 | H24: 132 | I24: 23.195 | J24: 2016-01-05T10:06:00 | K24: 2016-01-05T12:00:00 | L24: 1.9 | M24: 114 | N24: P | O24: -- | P24: 50 | Q24: 220.3525 | R24: -- | S24: -- | T24: -- | U24: SI | V24: 220.3525
C25: 30 | D25: 297411 | E25: 200 | F25: ALTO VALLE | G25: SALIDA ALIMENT. N° 5 EDERSA | H25: 13.19999981 | I25: 17.396 | J25: 2016-01-06T16:01:00 | K25: 2016-01-06T19:25:00 | L25: 3.4 | M25: 204 | N25: F | O25: NO | P25: 20 | Q25: -- | R25: 347.92 | S25: 1182.928 | T25: -- | U25: SI | V25: 1530.848
C26: 31 | D26: 297412 | E26: 199 | F26: ALTO VALLE | G26: SALIDA ALIMENT. N° 3 EDERSA | H26: 13.19999981 | I26: 17.396 | J26: 2016-01-06T16:01:00 | K26: 2016-01-06T19:56:00 | L26: 3.916666667 | M26: 235 | N26: F | O26: NO | P26: 20 | Q26: -- | R26: 347.92 | S26: 1363.8464 | T26: -- | U26: SI | V26: 1711.7664
C27: 32 | D27: 297414 | E27: 202 | F27: ALTO VALLE | G27: SALIDA ALIMENT. N° 7 EDERSA | H27: 13.19999981 | I27: 17.396 | J27: 2016-01-06T19:03:00 | K27: 2016-01-06T23:40:00 | L27: 4.616666667 | M27: 277 | N27: F | O27: NO | P27: 20 | Q27: -- | R27: 347.92 | S27: 1607.3904 | T27: -- | U27: SI | V27: 1955.3104
C28: 33 | D28: 297844 | E28: 4093 | F28: ALTO VALLE | G28: SALIDA ALIMENT. N° 1 EDERSA | H28: 33 | I28: 17.396 | J28: 2016-01-14T12:10:00 | K28: 2016-01-14T12:33:00 | L28: 0.3833333334 | M28: 23 | N28: F | O28: NO | P28: 25 | Q28: -- | R28: 434.9 | S28: 165.262 | T28: -- | U28: SI | V28: 600.162
C29: 34 | D29: 297845 | E29: 4829 | F29: ALTO VALLE | G29: SALIDA ALIMENT. N° 2 EDERSA | H29: 33 | I29: 17.396 | J29: 2016-01-14T12:10:00 | K29: 2016-01-14T12:34:00 | L29: 0.3999999999 | M29: 24 | N29: F | O29: NO | P29: 25 | Q29: -- | R29: 434.9 | S29: 173.96 | T29: -- | U29: SI | V29: 608.86
C30: 35 | D30: 297820 | E30: 4829 | F30: ALTO VALLE | G30: SALIDA ALIMENT. N° 2 EDERSA | H30: 33 | I30: 17.396 | J30: 2016-01-20T09:46:00 | K30: 2016-01-20T11:18:00 | L30: 1.533333333 | M30: 92 | N30: F | O30: NO | P30: 25 | Q30: -- | R30: 434.9 | S30: 665.397 | T30: -- | U30: SI | V30: 1100.297
C31: 36 | D31: 297821 | E31: 200 | F31: ALTO VALLE | G31: SALIDA ALIMENT. N° 5 EDERSA | H31: 13.19999981 | I31: 17.396 | J31: 2016-01-20T21:54:00 | K31: 2016-01-20T22:58:00 | L31: 1.066666667 | M31: 64 | N31: F | O31: NO | P31: 20 | Q31: -- | R31: 347.92 | S31: 372.2744 | T31: -- | U31: SI | V31: 720.1944
C32: 37 | D32: 297822 | E32: 202 | F32: ALTO VALLE | G32: SALIDA ALIMENT. N° 7 EDERSA | H32: 13.19999981 | I32: 17.396 | J32: 2016-01-20T22:09:00 | K32: 2016-01-21T01:55:00 | L32: 3.766666667 | M32: 226 | N32: F | O32: NO | P32: 20 | Q32: -- | R32: 347.92 | S32: 1311.6584 | T32: -- | U32: SI | V32: 1659.5784
C33: 38 | D33: 297825 | E33: 202 | F33: ALTO VALLE | G33: SALIDA ALIMENT. N° 7 EDERSA | H33: 13.19999981 | I33: 17.396 | J33: 2016-01-21T18:12:00 | K33: 2016-01-21T18:17:00 | L33: 0.08333333343 | M33: 5 | N33: F | O33: NO | P33: 20 | Q33: -- | R33: 347.92 | S33: 27.8336 | T33: -- | U33: SI | V33: 375.7536
C34: 39 | D34: 297826 | E34: 198 | F34: ALTO VALLE | G34: SALIDA ALIMENT. N° 4 CALF | H34: 13.19999981 | I34: 17.396 | J34: 2016-01-21T21:21:00 | K34: 2016-01-22T00:52:00 | L34: 3.516666667 | M34: 211 | N34: F | O34: NO | P34: 20 | Q34: -- | R34: 347.92 | S34: 1224.6784 | T34: -- | U34: SI | V34: 1572.5984
C35: 40 | D35: 297827 | E35: 4255 | F35: ALTO VALLE | G35: SALIDA ALIMENT. N° 6 CALF | H35: 13.19999981 | I35: 17.396 | J35: 2016-01-21T21:24:00 | K35: 2016-01-22T03:16:00 | L35: 5.866666667 | M35: 352 | N35: F | O35: NO | P35: 20 | Q35: -- | R35: 347.92 | S35: 2042.2904 | T35: -- | U35: SI | V35: 2390.2104
C36: 41 | D36: 298501 | E36: 205 | F36: P.P. BANDERITA | G36: SALIDA ALIMENT. EL CHAÑAR | H36: 13.2 | I36: 17.396 | J36: 2016-01-28T19:53:00 | K36: 2016-01-28T23:03:00 | L36: 3.166666667 | M36: 190 | N36: F | O36: NO | P36: 20 | Q36: -- | R36: 347.92 | S36: 1102.9064 | T36: -- | U36: SI | V36: 1450.8264
C37: 42 | D37: 298502 | E37: 206 | F37: P.P. BANDERITA | G37: SALIDA H.C.C. | H37: 13.2 | I37: 17.396 | J37: 2016-01-28T19:40:00 | K37: 2016-01-29T11:36:00 | L37: 15.93333333 | M37: 956 | N37: F | O37: NO | P37: 20 | Q37: -- | R37: 347.92 | S37: 5542.3656 | T37: -- | U37: =IF(F37="","","SI") -> SI | V37: 5890.2856
C38: 43 | D38: 298503 | E38: 204 | F38: P.P. BANDERITA | G38: LINEA P. GRANDE | H38: 33 | I38: 17.396 | J38: 2016-01-28T18:54:00 | K38: 2016-01-28T19:32:00 | L38: 0.6333333333 | M38: 38 | N38: F | O38: NO | P38: 25 | Q38: -- | R38: 434.9 | S38: 273.987 | T38: -- | U38: SI | V38: 708.887
C39: 44 | D39: 298504 | E39: 4416 | F39: P.P. BANDERITA | G39: SALIDA ALIMENT. EL CHAÑAR | H39: 33 | I39: 17.396 | J39: 2016-01-28T19:40:00 | K39: 2016-01-28T23:01:00 | L39: 3.35 | M39: 201 | N39: F | O39: NO | P39: 25 | Q39: -- | R39: 434.9 | S39: 1456.915 | T39: -- | U39: SI | V39: 1891.815
C40: 45 | D40: 298505 | E40: 4951 | F40: P.P. BANDERITA | G40: SALIDA ALIMENT. MARI MENUCO | H40: 33 | I40: =IF(OR(H40=132,H40=66),$G$14,IF(H40=33,$G$15,$G$16)) -> 17.396 | J40: 2016-01-28T05:18:00 | K40: 2016-01-28T05:35:00 | L40: =IF(J40="","",(K40-J40)*24) -> 0.2833333334 | M40: =IF(K40="","",ROUND((K40-J40)*24*60,0)) -> 17 | N40: F | O40: =IF(N40="","",IF(OR(N40="P",N40="RP"),"--","NO")) -> NO | P40: =IF(OR(H40=132,H40=66),$H$14,IF(H40=33,$H$15,$H$16)) -> 25 | Q40: =IF(N40="P",I40*P40*0.1*ROUND(M40/60,2),"--") -> -- | R40: =IF(O40="NO",IF(N40="F",I40*P40,"--"),"--") -> 434.9 | S40: =IF(N40="F",I40*P40*ROUND(M40/60,2),"--") -> 121.772 | T40: =IF(N40="RF",I40*P40*ROUND(M40/60,2),"--") -> -- | U40: =IF(F40="","","SI") -> SI | V40: =IF(F40="","",IF(H40="500/220",0,IF(U40="SI",SUM(Q40:T40),2*SUM(Q40:T40)))) -> 556.672
C42: (²) | D42: P - PROGRAMADA ; F - FORZADA | V42: =ROUND(SUM(V19:V41),2) -> 30201.49

Sheet SA-01 (2)
B2: =+'TOT-0116'!B2 -> ANEXO IV al Memorandum D.T.E.E. N° 687/ 2016
D4: ENTE NACIONAL REGULADOR
D5: DE LA ELECTRICIDAD
F8: SISTEMA DE TRANSPORTE DE ENERGÍA ELÉCTRICA POR DISTRIBUCIÓN TRONCAL - EPEN
F10: 2.2.- Salidas
B12: =+'TOT-0116'!B14 -> Desde el 01 al 31 de enero de 2016
F14: Salida en 132 kV = | G14: 23.195 | H14: =50*'TOT-0116'!B13 -> 50 | J14: =IF(H14=50," ",IF(H14=100," Coeficiente duplicado por tasa de falla >4 Sal. x año/100 km.","REVISAR COEFICIENTE")) -> 
F15: Salida en 33 kV = | G15: 17.396 | H15: =25*'TOT-0116'!B13 -> 25 | J15: =IF(H15=25," ",IF(H15=50," Coeficiente duplicado por tasa de falla >4 Sal. x año/100 km.","REVISAR COEFICIENTE")) -> 
F16: Salida en 13,2 kV = | G16: 17.396 | H16: =20*'TOT-0116'!B13 -> 20 | J16: =IF(H16=20," ",IF(H16=40," Coeficiente duplicado por tasa de falla >4 Sal. x año/100 km.","REVISAR COEFICIENTE")) -> 
C17: 3 | D17: 4 | E17: 5 | F17: 6 | G17: 7 | H17: 8 | I17: 9 | J17: 10 | K17: 11 | L17: 12 | M17: 13 | N17: 14 | O17: 15 | P17: 16 | Q17: 17 | R17: 18 | S17: 19 | T17: 20 | U17: 21 | V17: 22
C18: N° | D18: INDISP | E18: ID EQUIPO | F18: ESTACIÓN TRANSFORMADORA | G18: EQUIPO | H18: U [kV] | I18: $/h | J18: Salida | K18: Entrada | L18: Hs Indisp. | M18: Minutos. Indisp. | N18: Tipo Sal.(²) | O18: AUT. | P18: K (U) | Q18: PENALIZ. PROGRAM. | R18: PENALIZAC. FORZADA Por Salida Hs. Restantes | T18: RESTANTE FORZADA | U18: Informó en Térm. | V18: TOTAL PENALIZAC.
V19: ='SA-01 (1)'!V42 -> 30201.49
C21: 46 | D21: 298506 | E21: 204 | F21: P.P. BANDERITA | G21: LINEA P. GRANDE | H21: 33 | I21: =IF(OR(H21=132,H21=66),$G$14,IF(H21=33,$G$15,$G$16)) -> 17.396 | J21: 2016-01-28T19:39:00 | K21: 2016-01-28T23:01:00 | L21: =IF(J21="","",(K21-J21)*24) -> 3.366666667 | M21: =IF(K21="","",ROUND((K21-J21)*24*60,0)) -> 202 | N21: F | O21: =IF(N21="","",IF(OR(N21="P",N21="RP"),"--","NO")) -> NO | P21: =IF(OR(H21=132,H21=66),$H$14,IF(H21=33,$H$15,$H$16)) -> 25 | Q21: =IF(N21="P",I21*P21*0.1*ROUND(M21/60,2),"--") -> -- | R21: =IF(O21="NO",IF(N21="F",I21*P21,"--"),"--") -> 434.9 | S21: =IF(N21="F",I21*P21*ROUND(M21/60,2),"--") -> 1465.613 | T21: =IF(N21="RF",I21*P21*ROUND(M21/60,2),"--") -> -- | U21: =IF(F21="","","SI") -> SI | V21: =IF(F21="","",IF(H21="500/220",0,IF(U21="SI",SUM(Q21:T21),2*SUM(Q21:T21)))) -> 1900.513
C22: 47 | D22: 298507 | E22: 4951 | F22: P.P. BANDERITA | G22: ALIMENT. MARI MENUCO | H22: 33 | I22: =IF(OR(H22=132,H22=66),$G$14,IF(H22=33,$G$15,$G$16)) -> 17.396 | J22: 2016-01-28T19:59:00 | K22: 2016-01-28T23:02:00 | L22: 3.05 | M22: 183 | N22: F | O22: =IF(N22="","",IF(OR(N22="P",N22="RP"),"--","NO")) -> NO | P22: 25 | Q22: -- | R22: 434.9 | S22: 1326.445 | T22: -- | U22: SI | V22: 1761.345
C23: 48 | D23: 298508 | E23: 4416 | F23: P.P. BANDERITA | G23: SALIDA ALIMENT. EL CHAÑAR | H23: 33 | I23: 17.396 | J23: 2016-01-28T23:17:00 | K23: 2016-01-29T00:13:00 | L23: 0.9333333334 | M23: 56 | N23: F | O23: NO | P23: 25 | Q23: -- | R23: 434.9 | S23: 404.457 | T23: -- | U23: SI | V23: 839.357
C24: 49 | D24: 298510 | E24: 202 | F24: ALTO VALLE | G24: SALIDA ALIMENT. N° 7 EDERSA | H24: 13.19999981 | I24: 17.396 | J24: 2016-01-29T11:44:00 | K24: 2016-01-29T12:41:00 | L24: 0.95 | M24: 57 | N24: F | O24: NO | P24: 20 | Q24: -- | R24: 347.92 | S24: 330.524 | T24: -- | U24: SI | V24: 678.444
C25: 50 | D25: 298511 | E25: 206 | F25: P.P. BANDERITA | G25: SALIDA H.C.C. | H25: 13.2 | I25: 17.396 | J25: 2016-01-29T14:06:00 | K25: 2016-01-29T14:23:00 | L25: 0.2833333334 | M25: 17 | N25: F | O25: NO | P25: 20 | Q25: -- | R25: 347.92 | S25: 97.4176 | T25: -- | U25: SI | V25: 445.3376
I26: 17.396 | P26: 20 | Q26: -- | R26: -- | S26: -- | T26: --
I27: 17.396 | P27: 20 | Q27: -- | R27: -- | S27: -- | T27: --
I28: 17.396 | P28: 20 | Q28: -- | R28: -- | S28: -- | T28: --
I29: 17.396 | P29: 20 | Q29: -- | R29: -- | S29: -- | T29: --
I30: 17.396 | P30: 20 | Q30: -- | R30: -- | S30: -- | T30: --
I31: 17.396 | P31: 20 | Q31: -- | R31: -- | S31: -- | T31: --
I32: 17.396 | P32: 20 | Q32: -- | R32: -- | S32: -- | T32: --
I33: 17.396 | P33: 20 | Q33: -- | R33: -- | S33: -- | T33: --
I34: 17.396 | P34: 20 | Q34: -- | R34: -- | S34: -- | T34: --
I35: 17.396 | P35: 20 | Q35: -- | R35: -- | S35: -- | T35: --
I36: 17.396 | P36: 20 | Q36: -- | R36: -- | S36: -- | T36: --
I37: 17.396 | P37: 20 | Q37: -- | R37: -- | S37: -- | T37: --
I38: 17.396 | P38: 20 | Q38: -- | R38: -- | S38: -- | T38: --
I39: 17.396 | P39: 20 | Q39: -- | R39: -- | S39: -- | T39: --
I40: 17.396 | P40: 20 | Q40: -- | R40: -- | S40: -- | T40: --
C42: (²) | D42: F - FORZADA | V42: =ROUND(SUM(V19:V41),2) -> 35826.49

Sheet Tasa de Falla
B2: ='TOT-0116'!B2 -> ANEXO IV al Memorandum D.T.E.E. N° 687/ 2016
A3: ENTE NACIONAL REGULADOR
A4: DE LA ELECTRICIDAD
B6: ENTE PROVINCIAL DE ENERGIA DEL NEUQUEN - EPEN
B8: (TRANSPORTISTA POR DISTRIBUCIÓN TRONCAL)
B10: INDISPONIBILIDADES FORZADAS DE LÍNEAS - TASA DE FALLA
B13: Correspondiente al mes de Enero de 2016
D15: LÍNEAS | E15: U [kV[ | F15: Long. [km] | G15: Tipo | H15: ='[1]TASA DE FALLA'!DN15 -> 2015-01-01 | I15: ='[1]TASA DE FALLA'!DO15 -> 2015-02-01 | J15: ='[1]TASA DE FALLA'!DP15 -> 2015-03-01 | K15: ='[1]TASA DE FALLA'!DQ15 -> 2015-04-01 | L15: ='[1]TASA DE FALLA'!DR15 -> 2015-05-01 | M15: ='[1]TASA DE FALLA'!DS15 -> 2015-06-01 | N15: ='[1]TASA DE FALLA'!DT15 -> 2015-07-01 | O15: ='[1]TASA DE FALLA'!DU15 -> 2015-08-01 | P15: ='[1]TASA DE FALLA'!DV15 -> 2015-09-01 | Q15: ='[1]TASA DE FALLA'!DW15 -> 2015-10-01 | R15: ='[1]TASA DE FALLA'!DX15 -> 2015-11-01 | S15: ='[1]TASA DE FALLA'!DY15 -> 2015-12-01 | T15: ='[1]TASA DE FALLA'!DZ15 -> 2016-01-01
C19: ='[1]TASA DE FALLA'!C19 -> 1 | D19: ='[1]TASA DE FALLA'!D19 -> ARROYITO - CHARROYITO 1 | E19: ='[1]TASA DE FALLA'!E19 -> 132 | F19: ='[1]TASA DE FALLA'!F19 -> 1 | G19: ='[1]TASA DE FALLA'!G19 -> L | H19: =+IF('[1]TASA DE FALLA'!DN19=0,"",'[1]TASA DE FALLA'!DN19) ->  | I19: =+IF('[1]TASA DE FALLA'!DO19=0,"",'[1]TASA DE FALLA'!DO19) ->  | J19: =+IF('[1]TASA DE FALLA'!DP19=0,"",'[1]TASA DE FALLA'!DP19) ->  | K19: =+IF('[1]TASA DE FALLA'!DQ19=0,"",'[1]TASA DE FALLA'!DQ19) ->  | L19: =+IF('[1]TASA DE FALLA'!DR19=0,"",'[1]TASA DE FALLA'!DR19) ->  | M19: =+IF('[1]TASA DE FALLA'!DS19=0,"",'[1]TASA DE FALLA'!DS19) ->  | N19: =+IF('[1]TASA DE FALLA'!DT19=0,"",'[1]TASA DE FALLA'!DT19) ->  | O19: =+IF('[1]TASA DE FALLA'!DU19=0,"",'[1]TASA DE FALLA'!DU19) ->  | P19: =+IF('[1]TASA DE FALLA'!DV19=0,"",'[1]TASA DE FALLA'!DV19) ->  | Q19: =+IF('[1]TASA DE FALLA'!DW19=0,"",'[1]TASA DE FALLA'!DW19) ->  | R19: =+IF('[1]TASA DE FALLA'!DX19=0,"",'[1]TASA DE FALLA'!DX19) ->  | S19: =+IF('[1]TASA DE FALLA'!DY19=0,"",'[1]TASA DE FALLA'!DY19) -> 
C20: ='[1]TASA DE FALLA'!C20 -> 2 | D20: ='[1]TASA DE FALLA'!D20 -> ARROYITO - CHARROYITO 2 | E20: ='[1]TASA DE FALLA'!E20 -> 132 | F20: ='[1]TASA DE FALLA'!F20 -> 1 | G20: ='[1]TASA DE FALLA'!G20 -> L | H20: =+IF('[1]TASA DE FALLA'!DN20=0,"",'[1]TASA DE FALLA'!DN20) ->  | I20: =+IF('[1]TASA DE FALLA'!DO20=0,"",'[1]TASA DE FALLA'!DO20) ->  | J20: =+IF('[1]TASA DE FALLA'!DP20=0,"",'[1]TASA DE FALLA'!DP20) ->  | K20: =+IF('[1]TASA DE FALLA'!DQ20=0,"",'[1]TASA DE FALLA'!DQ20) ->  | L20: =+IF('[1]TASA DE FALLA'!DR20=0,"",'[1]TASA DE FALLA'!DR20) ->  | M20: =+IF('[1]TASA DE FALLA'!DS20=0,"",'[1]TASA DE FALLA'!DS20) ->  | N20: =+IF('[1]TASA DE FALLA'!DT20=0,"",'[1]TASA DE FALLA'!DT20) ->  | O20: =+IF('[1]TASA DE FALLA'!DU20=0,"",'[1]TASA DE FALLA'!DU20) ->  | P20: =+IF('[1]TASA DE FALLA'!DV20=0,"",'[1]TASA DE FALLA'!DV20) ->  | Q20: =+IF('[1]TASA DE FALLA'!DW20=0,"",'[1]TASA DE FALLA'!DW20) ->  | R20: =+IF('[1]TASA DE FALLA'!DX20=0,"",'[1]TASA DE FALLA'!DX20) ->  | S20: =+IF('[1]TASA DE FALLA'!DY20=0,"",'[1]TASA DE FALLA'!DY20) -> 
C21: ='[1]TASA DE FALLA'!C21 -> 3 | D21: ='[1]TASA DE FALLA'!D21 -> ARROYITO - CHARROYITO 3 | E21: ='[1]TASA DE FALLA'!E21 -> 132 | F21: ='[1]TASA DE FALLA'!F21 -> 1 | G21: ='[1]TASA DE FALLA'!G21 -> L | H21: =+IF('[1]TASA DE FALLA'!DN21=0,"",'[1]TASA DE FALLA'!DN21) ->  | I21: =+IF('[1]TASA DE FALLA'!DO21=0,"",'[1]TASA DE FALLA'!DO21) ->  | J21: =+IF('[1]TASA DE FALLA'!DP21=0,"",'[1]TASA DE FALLA'!DP21) ->  | K21: =+IF('[1]TASA DE FALLA'!DQ21=0,"",'[1]TASA DE FALLA'!DQ21) ->  | L21: =+IF('[1]TASA DE FALLA'!DR21=0,"",'[1]TASA DE FALLA'!DR21) ->  | M21: =+IF('[1]TASA DE FALLA'!DS21=0,"",'[1]TASA DE FALLA'!DS21) ->  | N21: =+IF('[1]TASA DE FALLA'!DT21=0,"",'[1]TASA DE FALLA'!DT21) ->  | O21: =+IF('[1]TASA DE FALLA'!DU21=0,"",'[1]TASA DE FALLA'!DU21) ->  | P21: =+IF('[1]TASA DE FALLA'!DV21=0,"",'[1]TASA DE FALLA'!DV21) -> 1 | Q21: =+IF('[1]TASA DE FALLA'!DW21=0,"",'[1]TASA DE FALLA'!DW21) ->  | R21: =+IF('[1]TASA DE FALLA'!DX21=0,"",'[1]TASA DE FALLA'!DX21) ->  | S21: =+IF('[1]TASA DE FALLA'!DY21=0,"",'[1]TASA DE FALLA'!DY21) -> 
C22: ='[1]TASA DE FALLA'!C22 -> 4 | D22: ='[1]TASA DE FALLA'!D22 -> ARROYITO - CHOCON 1 | E22: ='[1]TASA DE FALLA'!E22 -> 132 | F22: ='[1]TASA DE FALLA'!F22 -> 25 | G22: ='[1]TASA DE FALLA'!G22 -> L | H22: =+IF('[1]TASA DE FALLA'!DN22=0,"",'[1]TASA DE FALLA'!DN22) -> 1 | I22: =+IF('[1]TASA DE FALLA'!DO22=0,"",'[1]TASA DE FALLA'!DO22) ->  | J22: =+IF('[1]TASA DE FALLA'!DP22=0,"",'[1]TASA DE FALLA'!DP22) ->  | K22: =+IF('[1]TASA DE FALLA'!DQ22=0,"",'[1]TASA DE FALLA'!DQ22) ->  | L22: =+IF('[1]TASA DE FALLA'!DR22=0,"",'[1]TASA DE FALLA'!DR22) ->  | M22: =+IF('[1]TASA DE FALLA'!DS22=0,"",'[1]TASA DE FALLA'!DS22) ->  | N22: =+IF('[1]TASA DE FALLA'!DT22=0,"",'[1]TASA DE FALLA'!DT22) ->  | O22: =+IF('[1]TASA DE FALLA'!DU22=0,"",'[1]TASA DE FALLA'!DU22) ->  | P22: =+IF('[1]TASA DE FALLA'!DV22=0,"",'[1]TASA DE FALLA'!DV22) ->  | Q22: =+IF('[1]TASA DE FALLA'!DW22=0,"",'[1]TASA DE FALLA'!DW22) ->  | R22: =+IF('[1]TASA DE FALLA'!DX22=0,"",'[1]TASA DE FALLA'!DX22) ->  | S22: =+IF('[1]TASA DE FALLA'!DY22=0,"",'[1]TASA DE FALLA'!DY22) -> 
C23: ='[1]TASA DE FALLA'!C23 -> 5 | D23: ='[1]TASA DE FALLA'!D23 -> ARROYITO - CHOCON 2 | E23: ='[1]TASA DE FALLA'!E23 -> 132 | F23: ='[1]TASA DE FALLA'!F23 -> 25 | G23: ='[1]TASA DE FALLA'!G23 -> L | H23: =+IF('[1]TASA DE FALLA'!DN23=0,"",'[1]TASA DE FALLA'!DN23) ->  | I23: =+IF('[1]TASA DE FALLA'!DO23=0,"",'[1]TASA DE FALLA'!DO23) ->  | J23: =+IF('[1]TASA DE FALLA'!DP23=0,"",'[1]TASA DE FALLA'!DP23) ->  | K23: =+IF('[1]TASA DE FALLA'!DQ23=0,"",'[1]TASA DE FALLA'!DQ23) ->  | L23: =+IF('[1]TASA DE FALLA'!DR23=0,"",'[1]TASA DE FALLA'!DR23) ->  | M23: =+IF('[1]TASA DE FALLA'!DS23=0,"",'[1]TASA DE FALLA'!DS23) ->  | N23: =+IF('[1]TASA DE FALLA'!DT23=0,"",'[1]TASA DE FALLA'!DT23) ->  | O23: =+IF('[1]TASA DE FALLA'!DU23=0,"",'[1]TASA DE FALLA'!DU23) ->  | P23: =+IF('[1]TASA DE FALLA'!DV23=0,"",'[1]TASA DE FALLA'!DV23) ->  | Q23: =+IF('[1]TASA DE FALLA'!DW23=0,"",'[1]TASA DE FALLA'!DW23) ->  | R23: =+IF('[1]TASA DE FALLA'!DX23=0,"",'[1]TASA DE FALLA'!DX23) ->  | S23: =+IF('[1]TASA DE FALLA'!DY23=0,"",'[1]TASA DE FALLA'!DY23) -> 
C24: ='[1]TASA DE FALLA'!C24 -> 6 | D24: ='[1]TASA DE FALLA'!D24 -> ARROYITO - PIAP 1 | E24: ='[1]TASA DE FALLA'!E24 -> 132 | F24: ='[1]TASA DE FALLA'!F24 -> 2 | G24: ='[1]TASA DE FALLA'!G24 -> L | H24: =+IF('[1]TASA DE FALLA'!DN24=0,"",'[1]TASA DE FALLA'!DN24) ->  | I24: =+IF('[1]TASA DE FALLA'!DO24=0,"",'[1]TASA DE FALLA'!DO24) ->  | J24: =+IF('[1]TASA DE FALLA'!DP24=0,"",'[1]TASA DE FALLA'!DP24) ->  | K24: =+IF('[1]TASA DE FALLA'!DQ24=0,"",'[1]TASA DE FALLA'!DQ24) ->  | L24: =+IF('[1]TASA DE FALLA'!DR24=0,"",'[1]TASA DE FALLA'!DR24) ->  | M24: =+IF('[1]TASA DE FALLA'!DS24=0,"",'[1]TASA DE FALLA'!DS24) ->  | N24: =+IF('[1]TASA DE FALLA'!DT24=0,"",'[1]TASA DE FALLA'!DT24) ->  | O24: =+IF('[1]TASA DE FALLA'!DU24=0,"",'[1]TASA DE FALLA'!DU24) ->  | P24: =+IF('[1]TASA DE FALLA'!DV24=0,"",'[1]TASA DE FALLA'!DV24) ->  | Q24: =+IF('[1]TASA DE FALLA'!DW24=0,"",'[1]TASA DE FALLA'!DW24) ->  | R24: =+IF('[1]TASA DE FALLA'!DX24=0,"",'[1]TASA DE FALLA'!DX24) ->  | S24: =+IF('[1]TASA DE FALLA'!DY24=0,"",'[1]TASA DE FALLA'!DY24) -> 
C25: ='[1]TASA DE FALLA'!C25 -> 7 | D25: ='[1]TASA DE FALLA'!D25 -> ARROYITO - PIAP 2 | E25: ='[1]TASA DE FALLA'!E25 -> 132 | F25: ='[1]TASA DE FALLA'!F25 -> 2 | G25: ='[1]TASA DE FALLA'!G25 -> L | H25: =+IF('[1]TASA DE FALLA'!DN25=0,"",'[1]TASA DE FALLA'!DN25) ->  | I25: =+IF('[1]TASA DE FALLA'!DO25=0,"",'[1]TASA DE FALLA'!DO25) ->  | J25: =+IF('[1]TASA DE FALLA'!DP25=0,"",'[1]TASA DE FALLA'!DP25) ->  | K25: =+IF('[1]TASA DE FALLA'!DQ25=0,"",'[1]TASA DE FALLA'!DQ25) ->  | L25: =+IF('[1]TASA DE FALLA'!DR25=0,"",'[1]TASA DE FALLA'!DR25) ->  | M25: =+IF('[1]TASA DE FALLA'!DS25=0,"",'[1]TASA DE FALLA'!DS25) ->  | N25: =+IF('[1]TASA DE FALLA'!DT25=0,"",'[1]TASA DE FALLA'!DT25) ->  | O25: =+IF('[1]TASA DE FALLA'!DU25=0,"",'[1]TASA DE FALLA'!DU25) ->  | P25: =+IF('[1]TASA DE FALLA'!DV25=0,"",'[1]TASA DE FALLA'!DV25) ->  | Q25: =+IF('[1]TASA DE FALLA'!DW25=0,"",'[1]TASA DE FALLA'!DW25) ->  | R25: =+IF('[1]TASA DE FALLA'!DX25=0,"",'[1]TASA DE FALLA'!DX25) ->  | S25: =+IF('[1]TASA DE FALLA'!DY25=0,"",'[1]TASA DE FALLA'!DY25) -> 
C26: ='[1]TASA DE FALLA'!C26 -> 8 | D26: ='[1]TASA DE FALLA'!D26 -> ALTO VALLE - CENTENARIO | E26: ='[1]TASA DE FALLA'!E26 -> 132 | F26: ='[1]TASA DE FALLA'!F26 -> 17 | G26: ='[1]TASA DE FALLA'!G26 -> L | H26: =+IF('[1]TASA DE FALLA'!DN26=0,"",'[1]TASA DE FALLA'!DN26) ->  | I26: =+IF('[1]TASA DE FALLA'!DO26=0,"",'[1]TASA DE FALLA'!DO26) ->  | J26: =+IF('[1]TASA DE FALLA'!DP26=0,"",'[1]TASA DE FALLA'!DP26) ->  | K26: =+IF('[1]TASA DE FALLA'!DQ26=0,"",'[1]TASA DE FALLA'!DQ26) ->  | L26: =+IF('[1]TASA DE FALLA'!DR26=0,"",'[1]TASA DE FALLA'!DR26) ->  | M26: =+IF('[1]TASA DE FALLA'!DS26=0,"",'[1]TASA DE FALLA'!DS26) ->  | N26: =+IF('[1]TASA DE FALLA'!DT26=0,"",'[1]TASA DE FALLA'!DT26) ->  | O26: =+IF('[1]TASA DE FALLA'!DU26=0,"",'[1]TASA DE FALLA'!DU26) -> 1 | P26: =+IF('[1]TASA DE FALLA'!DV26=0,"",'[1]TASA DE FALLA'!DV26) ->  | Q26: =+IF('[1]TASA DE FALLA'!DW26=0,"",'[1]TASA DE FALLA'!DW26) ->  | R26: =+IF('[1]TASA DE FALLA'!DX26=0,"",'[1]TASA DE FALLA'!DX26) ->  | S26: =+IF('[1]TASA DE FALLA'!DY26=0,"",'[1]TASA DE FALLA'!DY26) -> 
C27: ='[1]TASA DE FALLA'!C27 -> 10 | D27: ='[1]TASA DE FALLA'!D27 -> ALTO VALLE - COLONIA VALENTINA - ARROYITO | E27: ='[1]TASA DE FALLA'!E27 -> 132 | F27: ='[1]TASA DE FALLA'!F27 -> 58.9 | G27: ='[1]TASA DE FALLA'!G27 -> L | H27: =+IF('[1]TASA DE FALLA'!DN27=0,"",'[1]TASA DE FALLA'!DN27) ->  | I27: =+IF('[1]TASA DE FALLA'!DO27=0,"",'[1]TASA DE FALLA'!DO27) ->  | J27: =+IF('[1]TASA DE FALLA'!DP27=0,"",'[1]TASA DE FALLA'!DP27) ->  | K27: =+IF('[1]TASA DE FALLA'!DQ27=0,"",'[1]TASA DE FALLA'!DQ27) ->  | L27: =+IF('[1]TASA DE FALLA'!DR27=0,"",'[1]TASA DE FALLA'!DR27) ->  | M27: =+IF('[1]TASA DE FALLA'!DS27=0,"",'[1]TASA DE FALLA'!DS27) ->  | N27: =+IF('[1]TASA DE FALLA'!DT27=0,"",'[1]TASA DE FALLA'!DT27) ->  | O27: =+IF('[1]TASA DE FALLA'!DU27=0,"",'[1]TASA DE FALLA'!DU27) ->  | P27: =+IF('[1]TASA DE FALLA'!DV27=0,"",'[1]TASA DE FALLA'!DV27) ->  | Q27: =+IF('[1]TASA DE FALLA'!DW27=0,"",'[1]TASA DE FALLA'!DW27) ->  | R27: =+IF('[1]TASA DE FALLA'!DX27=0,"",'[1]TASA DE FALLA'!DX27) ->  | S27: =+IF('[1]TASA DE FALLA'!DY27=0,"",'[1]TASA DE FALLA'!DY27) -> 
C28: ='[1]TASA DE FALLA'!C28 -> 11 | D28: ='[1]TASA DE FALLA'!D28 -> CHOCON OESTE - CHOCON | E28: ='[1]TASA DE FALLA'!E28 -> 132 | F28: ='[1]TASA DE FALLA'!F28 -> 3.5 | G28: ='[1]TASA DE FALLA'!G28 -> L | H28: =+IF('[1]TASA DE FALLA'!DN28=0,"",'[1]TASA DE FALLA'!DN28) ->  | I28: =+IF('[1]TASA DE FALLA'!DO28=0,"",'[1]TASA DE FALLA'!DO28) ->  | J28: =+IF('[1]TASA DE FALLA'!DP28=0,"",'[1]TASA DE FALLA'!DP28) ->  | K28: =+IF('[1]TASA DE FALLA'!DQ28=0,"",'[1]TASA DE FALLA'!DQ28) ->  | L28: =+IF('[1]TASA DE FALLA'!DR28=0,"",'[1]TASA DE FALLA'!DR28) ->  | M28: =+IF('[1]TASA DE FALLA'!DS28=0,"",'[1]TASA DE FALLA'!DS28) ->  | N28: =+IF('[1]TASA DE FALLA'!DT28=0,"",'[1]TASA DE FALLA'!DT28) ->  | O28: =+IF('[1]TASA DE FALLA'!DU28=0,"",'[1]TASA DE FALLA'!DU28) ->  | P28: =+IF('[1]TASA DE FALLA'!DV28=0,"",'[1]TASA DE FALLA'!DV28) ->  | Q28: =+IF('[1]TASA DE FALLA'!DW28=0,"",'[1]TASA DE FALLA'!DW28) ->  | R28: =+IF('[1]TASA DE FALLA'!DX28=0,"",'[1]TASA DE FALLA'!DX28) ->  | S28: =+IF('[1]TASA DE FALLA'!DY28=0,"",'[1]TASA DE FALLA'!DY28) -> 
C29: ='[1]TASA DE FALLA'!C29 -> 18 | D29: ='[1]TASA DE FALLA'!D29 -> MEDANITOS - PTO. SECCIONAMIENTO | E29: ='[1]TASA DE FALLA'!E29 -> 132 | F29: ='[1]TASA DE FALLA'!F29 -> 41 | G29: ='[1]TASA DE FALLA'!G29 -> L | H29: =+IF('[1]TASA DE FALLA'!DN29=0,"",'[1]TASA DE FALLA'!DN29) ->  | I29: =+IF('[1]TASA DE FALLA'!DO29=0,"",'[1]TASA DE FALLA'!DO29) ->  | J29: =+IF('[1]TASA DE FALLA'!DP29=0,"",'[1]TASA DE FALLA'!DP29) ->  | K29: =+IF('[1]TASA DE FALLA'!DQ29=0,"",'[1]TASA DE FALLA'!DQ29) ->  | L29: =+IF('[1]TASA DE FALLA'!DR29=0,"",'[1]TASA DE FALLA'!DR29) ->  | M29: =+IF('[1]TASA DE FALLA'!DS29=0,"",'[1]TASA DE FALLA'!DS29) ->  | N29: =+IF('[1]TASA DE FALLA'!DT29=0,"",'[1]TASA DE FALLA'!DT29) ->  | O29: =+IF('[1]TASA DE FALLA'!DU29=0,"",'[1]TASA DE FALLA'!DU29) ->  | P29: =+IF('[1]TASA DE FALLA'!DV29=0,"",'[1]TASA DE FALLA'!DV29) ->  | Q29: =+IF('[1]TASA DE FALLA'!DW29=0,"",'[1]TASA DE FALLA'!DW29) ->  | R29: =+IF('[1]TASA DE FALLA'!DX29=0,"",'[1]TASA DE FALLA'!DX29) ->  | S29: =+IF('[1]TASA DE FALLA'!DY29=0,"",'[1]TASA DE FALLA'!DY29) -> 1
C30: ='[1]TASA DE FALLA'!C30 -> 19 | D30: ='[1]TASA DE FALLA'!D30 -> PIEDRA DEL AGUILA - EL CHOCON | E30: ='[1]TASA DE FALLA'!E30 -> 132 | F30: ='[1]TASA DE FALLA'!F30 -> 170 | G30: ='[1]TASA DE FALLA'!G30 -> L | H30: =+IF('[1]TASA DE FALLA'!DN30=0,"",'[1]TASA DE FALLA'!DN30) ->  | I30: =+IF('[1]TASA DE FALLA'!DO30=0,"",'[1]TASA DE FALLA'!DO30) ->  | J30: =+IF('[1]TASA DE FALLA'!DP30=0,"",'[1]TASA DE FALLA'!DP30) ->  | K30: =+IF('[1]TASA DE FALLA'!DQ30=0,"",'[1]TASA DE FALLA'!DQ30) ->  | L30: =+IF('[1]TASA DE FALLA'!DR30=0,"",'[1]TASA DE FALLA'!DR30) ->  | M30: =+IF('[1]TASA DE FALLA'!DS30=0,"",'[1]TASA DE FALLA'!DS30) ->  | N30: =+IF('[1]TASA DE FALLA'!DT30=0,"",'[1]TASA DE FALLA'!DT30) ->  | O30: =+IF('[1]TASA DE FALLA'!DU30=0,"",'[1]TASA DE FALLA'!DU30) ->  | P30: =+IF('[1]TASA DE FALLA'!DV30=0,"",'[1]TASA DE FALLA'!DV30) ->  | Q30: =+IF('[1]TASA DE FALLA'!DW30=0,"",'[1]TASA DE FALLA'!DW30) ->  | R30: =+IF('[1]TASA DE FALLA'!DX30=0,"",'[1]TASA DE FALLA'!DX30) ->  | S30: =+IF('[1]TASA DE FALLA'!DY30=0,"",'[1]TASA DE FALLA'!DY30) -> 
C31: ='[1]TASA DE FALLA'!C31 -> 20 | D31: ='[1]TASA DE FALLA'!D31 -> PLAYA PLANICIE BANDERITA - PCIE. BANDERITA | E31: ='[1]TASA DE FALLA'!E31 -> 132 | F31: ='[1]TASA DE FALLA'!F31 -> 1.5 | G31: ='[1]TASA DE FALLA'!G31 -> L | H31: =+IF('[1]TASA DE FALLA'!DN31=0,"",'[1]TASA DE FALLA'!DN31) ->  | I31: =+IF('[1]TASA DE FALLA'!DO31=0,"",'[1]TASA DE FALLA'!DO31) ->  | J31: =+IF('[1]TASA DE FALLA'!DP31=0,"",'[1]TASA DE FALLA'!DP31) ->  | K31: =+IF('[1]TASA DE FALLA'!DQ31=0,"",'[1]TASA DE FALLA'!DQ31) ->  | L31: =+IF('[1]TASA DE FALLA'!DR31=0,"",'[1]TASA DE FALLA'!DR31) ->  | M31: =+IF('[1]TASA DE FALLA'!DS31=0,"",'[1]TASA DE FALLA'!DS31) ->  | N31: =+IF('[1]TASA DE FALLA'!DT31=0,"",'[1]TASA DE FALLA'!DT31) ->  | O31: =+IF('[1]TASA DE FALLA'!DU31=0,"",'[1]TASA DE FALLA'!DU31) ->  | P31: =+IF('[1]TASA DE FALLA'!DV31=0,"",'[1]TASA DE FALLA'!DV31) ->  | Q31: =+IF('[1]TASA DE FALLA'!DW31=0,"",'[1]TASA DE FALLA'!DW31) ->  | R31: =+IF('[1]TASA DE FALLA'!DX31=0,"",'[1]TASA DE FALLA'!DX31) ->  | S31: =+IF('[1]TASA DE FALLA'!DY31=0,"",'[1]TASA DE FALLA'!DY31) -> 
C32: ='[1]TASA DE FALLA'!C32 -> 21 | D32: ='[1]TASA DE FALLA'!D32 -> PTO. SECCIONAMIENTO - PTO. HERNANDEZ | E32: ='[1]TASA DE FALLA'!E32 -> 132 | F32: ='[1]TASA DE FALLA'!F32 -> 89 | G32: ='[1]TASA DE FALLA'!G32 -> L | H32: =+IF('[1]TASA DE FALLA'!DN32=0,"",'[1]TASA DE FALLA'!DN32) -> XXXX | I32: =+IF('[1]TASA DE FALLA'!DO32=0,"",'[1]TASA DE FALLA'!DO32) -> XXXX | J32: =+IF('[1]TASA DE FALLA'!DP32=0,"",'[1]TASA DE FALLA'!DP32) -> XXXX | K32: =+IF('[1]TASA DE FALLA'!DQ32=0,"",'[1]TASA DE FALLA'!DQ32) -> XXXX | L32: =+IF('[1]TASA DE FALLA'!DR32=0,"",'[1]TASA DE FALLA'!DR32) -> XXXX | M32: =+IF('[1]TASA DE FALLA'!DS32=0,"",'[1]TASA DE FALLA'!DS32) -> XXXX | N32: =+IF('[1]TASA DE FALLA'!DT32=0,"",'[1]TASA DE FALLA'!DT32) -> XXXX | O32: =+IF('[1]TASA DE FALLA'!DU32=0,"",'[1]TASA DE FALLA'!DU32) -> XXXX | P32: =+IF('[1]TASA DE FALLA'!DV32=0,"",'[1]TASA DE FALLA'!DV32) -> XXXX | Q32: =+IF('[1]TASA DE FALLA'!DW32=0,"",'[1]TASA DE FALLA'!DW32) -> XXXX | R32: =+IF('[1]TASA DE FALLA'!DX32=0,"",'[1]TASA DE FALLA'!DX32) -> XXXX | S32: =+IF('[1]TASA DE FALLA'!DY32=0,"",'[1]TASA DE FALLA'!DY32) -> XXXX
C33: ='[1]TASA DE FALLA'!C33 -> 22 | D33: ='[1]TASA DE FALLA'!D33 -> PTO. SECCIONAMIENTO - SEÑAL PICADA | E33: ='[1]TASA DE FALLA'!E33 -> 132 | F33: ='[1]TASA DE FALLA'!F33 -> 18 | G33: ='[1]TASA DE FALLA'!G33 -> L | H33: =+IF('[1]TASA DE FALLA'!DN33=0,"",'[1]TASA DE FALLA'!DN33) ->  | I33: =+IF('[1]TASA DE FALLA'!DO33=0,"",'[1]TASA DE FALLA'!DO33) ->  | J33: =+IF('[1]TASA DE FALLA'!DP33=0,"",'[1]TASA DE FALLA'!DP33) ->  | K33: =+IF('[1]TASA DE FALLA'!DQ33=0,"",'[1]TASA DE FALLA'!DQ33) ->  | L33: =+IF('[1]TASA DE FALLA'!DR33=0,"",'[1]TASA DE FALLA'!DR33) ->  | M33: =+IF('[1]TASA DE FALLA'!DS33=0,"",'[1]TASA DE FALLA'!DS33) ->  | N33: =+IF('[1]TASA DE FALLA'!DT33=0,"",'[1]TASA DE FALLA'!DT33) ->  | O33: =+IF('[1]TASA DE FALLA'!DU33=0,"",'[1]TASA DE FALLA'!DU33) ->  | P33: =+IF('[1]TASA DE FALLA'!DV33=0,"",'[1]TASA DE FALLA'!DV33) ->  | Q33: =+IF('[1]TASA DE FALLA'!DW33=0,"",'[1]TASA DE FALLA'!DW33) ->  | R33: =+IF('[1]TASA DE FALLA'!DX33=0,"",'[1]TASA DE FALLA'!DX33) ->  | S33: =+IF('[1]TASA DE FALLA'!DY33=0,"",'[1]TASA DE FALLA'!DY33) -> 
C34: ='[1]TASA DE FALLA'!C34 -> 29 | D34: ='[1]TASA DE FALLA'!D34 -> PUESTO HERNANDEZ - CHIUHIDO II | E34: ='[1]TASA DE FALLA'!E34 -> 132 | F34: ='[1]TASA DE FALLA'!F34 -> 19.5 | G34: ='[1]TASA DE FALLA'!G34 -> L | H34: =+IF('[1]TASA DE FALLA'!DN34=0,"",'[1]TASA DE FALLA'!DN34) ->  | I34: =+IF('[1]TASA DE FALLA'!DO34=0,"",'[1]TASA DE FALLA'!DO34) ->  | J34: =+IF('[1]TASA DE FALLA'!DP34=0,"",'[1]TASA DE FALLA'!DP34) ->  | K34: =+IF('[1]TASA DE FALLA'!DQ34=0,"",'[1]TASA DE FALLA'!DQ34) ->  | L34: =+IF('[1]TASA DE FALLA'!DR34=0,"",'[1]TASA DE FALLA'!DR34) ->  | M34: =+IF('[1]TASA DE FALLA'!DS34=0,"",'[1]TASA DE FALLA'!DS34) ->  | N34: =+IF('[1]TASA DE FALLA'!DT34=0,"",'[1]TASA DE FALLA'!DT34) ->  | O34: =+IF('[1]TASA DE FALLA'!DU34=0,"",'[1]TASA DE FALLA'!DU34) ->  | P34: =+IF('[1]TASA DE FALLA'!DV34=0,"",'[1]TASA DE FALLA'!DV34) ->  | Q34: =+IF('[1]TASA DE FALLA'!DW34=0,"",'[1]TASA DE FALLA'!DW34) ->  | R34: =+IF('[1]TASA DE FALLA'!DX34=0,"",'[1]TASA DE FALLA'!DX34) ->  | S34: =+IF('[1]TASA DE FALLA'!DY34=0,"",'[1]TASA DE FALLA'!DY34) -> 
C35: ='[1]TASA DE FALLA'!C35 -> 30 | D35: ='[1]TASA DE FALLA'!D35 -> CHIUHIDO II - EL TRAPIAL | E35: ='[1]TASA DE FALLA'!E35 -> 132 | F35: ='[1]TASA DE FALLA'!F35 -> 4.9 | G35: ='[1]TASA DE FALLA'!G35 -> L | H35: =+IF('[1]TASA DE FALLA'!DN35=0,"",'[1]TASA DE FALLA'!DN35) ->  | I35: =+IF('[1]TASA DE FALLA'!DO35=0,"",'[1]TASA DE FALLA'!DO35) ->  | J35: =+IF('[1]TASA DE FALLA'!DP35=0,"",'[1]TASA DE FALLA'!DP35) ->  | K35: =+IF('[1]TASA DE FALLA'!DQ35=0,"",'[1]TASA DE FALLA'!DQ35) ->  | L35: =+IF('[1]TASA DE FALLA'!DR35=0,"",'[1]TASA DE FALLA'!DR35) ->  | M35: =+IF('[1]TASA DE FALLA'!DS35=0,"",'[1]TASA DE FALLA'!DS35) ->  | N35: =+IF('[1]TASA DE FALLA'!DT35=0,"",'[1]TASA DE FALLA'!DT35) ->  | O35: =+IF('[1]TASA DE FALLA'!DU35=0,"",'[1]TASA DE FALLA'!DU35) ->  | P35: =+IF('[1]TASA DE FALLA'!DV35=0,"",'[1]TASA DE FALLA'!DV35) ->  | Q35: =+IF('[1]TASA DE FALLA'!DW35=0,"",'[1]TASA DE FALLA'!DW35) ->  | R35: =+IF('[1]TASA DE FALLA'!DX35=0,"",'[1]TASA DE FALLA'!DX35) ->  | S35: =+IF('[1]TASA DE FALLA'!DY35=0,"",'[1]TASA DE FALLA'!DY35) -> 
C36: ='[1]TASA DE FALLA'!C36 -> 31 | D36: ='[1]TASA DE FALLA'!D36 -> EL TRAPIAL - LOMA DE LA LATA 1 | E36: ='[1]TASA DE FALLA'!E36 -> 132 | F36: ='[1]TASA DE FALLA'!F36 -> 142 | G36: ='[1]TASA DE FALLA'!G36 -> L | H36: =+IF('[1]TASA DE FALLA'!DN36=0,"",'[1]TASA DE FALLA'!DN36) ->  | I36: =+IF('[1]TASA DE FALLA'!DO36=0,"",'[1]TASA DE FALLA'!DO36) ->  | J36: =+IF('[1]TASA DE FALLA'!DP36=0,"",'[1]TASA DE FALLA'!DP36) ->  | K36: =+IF('[1]TASA DE FALLA'!DQ36=0,"",'[1]TASA DE FALLA'!DQ36) ->  | L36: =+IF('[1]TASA DE FALLA'!DR36=0,"",'[1]TASA DE FALLA'!DR36) ->  | M36: =+IF('[1]TASA DE FALLA'!DS36=0,"",'[1]TASA DE FALLA'!DS36) ->  | N36: =+IF('[1]TASA DE FALLA'!DT36=0,"",'[1]TASA DE FALLA'!DT36) ->  | O36: =+IF('[1]TASA DE FALLA'!DU36=0,"",'[1]TASA DE FALLA'!DU36) ->  | P36: =+IF('[1]TASA DE FALLA'!DV36=0,"",'[1]TASA DE FALLA'!DV36) ->  | Q36: =+IF('[1]TASA DE FALLA'!DW36=0,"",'[1]TASA DE FALLA'!DW36) ->  | R36: =+IF('[1]TASA DE FALLA'!DX36=0,"",'[1]TASA DE FALLA'!DX36) ->  | S36: =+IF('[1]TASA DE FALLA'!DY36=0,"",'[1]TASA DE FALLA'!DY36) -> 
C37: ='[1]TASA DE FALLA'!C37 -> 32 | D37: ='[1]TASA DE FALLA'!D37 -> EL TRAPIAL - LOMA DE LA LATA 2 | E37: ='[1]TASA DE FALLA'!E37 -> 132 | F37: ='[1]TASA DE FALLA'!F37 -> 142 | G37: ='[1]TASA DE FALLA'!G37 -> L | H37: =+IF('[1]TASA DE FALLA'!DN37=0,"",'[1]TASA DE FALLA'!DN37) ->  | I37: =+IF('[1]TASA DE FALLA'!DO37=0,"",'[1]TASA DE FALLA'!DO37) ->  | J37: =+IF('[1]TASA DE FALLA'!DP37=0,"",'[1]TASA DE FALLA'!DP37) ->  | K37: =+IF('[1]TASA DE FALLA'!DQ37=0,"",'[1]TASA DE FALLA'!DQ37) ->  | L37: =+IF('[1]TASA DE FALLA'!DR37=0,"",'[1]TASA DE FALLA'!DR37) ->  | M37: =+IF('[1]TASA DE FALLA'!DS37=0,"",'[1]TASA DE FALLA'!DS37) ->  | N37: =+IF('[1]TASA DE FALLA'!DT37=0,"",'[1]TASA DE FALLA'!DT37) ->  | O37: =+IF('[1]TASA DE FALLA'!DU37=0,"",'[1]TASA DE FALLA'!DU37) ->  | P37: =+IF('[1]TASA DE FALLA'!DV37=0,"",'[1]TASA DE FALLA'!DV37) ->  | Q37: =+IF('[1]TASA DE FALLA'!DW37=0,"",'[1]TASA DE FALLA'!DW37) ->  | R37: =+IF('[1]TASA DE FALLA'!DX37=0,"",'[1]TASA DE FALLA'!DX37) ->  | S37: =+IF('[1]TASA DE FALLA'!DY37=0,"",'[1]TASA DE FALLA'!DY37) -> 
C38: ='[1]TASA DE FALLA'!C38 -> 33 | D38: ='[1]TASA DE FALLA'!D38 -> PTO. SECCIONAMIENTO - RINCON DE LOS SAUCES | E38: ='[1]TASA DE FALLA'!E38 -> 132 | F38: ='[1]TASA DE FALLA'!F38 -> 67.705 | G38: ='[1]TASA DE FALLA'!G38 -> L | H38: =+IF('[1]TASA DE FALLA'!DN38=0,"",'[1]TASA DE FALLA'!DN38) ->  | I38: =+IF('[1]TASA DE FALLA'!DO38=0,"",'[1]TASA DE FALLA'!DO38) ->  | J38: =+IF('[1]TASA DE FALLA'!DP38=0,"",'[1]TASA DE FALLA'!DP38) ->  | K38: =+IF('[1]TASA DE FALLA'!DQ38=0,"",'[1]TASA DE FALLA'!DQ38) ->  | L38: =+IF('[1]TASA DE FALLA'!DR38=0,"",'[1]TASA DE FALLA'!DR38) ->  | M38: =+IF('[1]TASA DE FALLA'!DS38=0,"",'[1]TASA DE FALLA'!DS38) ->  | N38: =+IF('[1]TASA DE FALLA'!DT38=0,"",'[1]TASA DE FALLA'!DT38) ->  | O38: =+IF('[1]TASA DE FALLA'!DU38=0,"",'[1]TASA DE FALLA'!DU38) ->  | P38: =+IF('[1]TASA DE FALLA'!DV38=0,"",'[1]TASA DE FALLA'!DV38) ->  | Q38: =+IF('[1]TASA DE FALLA'!DW38=0,"",'[1]TASA DE FALLA'!DW38) ->  | R38: =+IF('[1]TASA DE FALLA'!DX38=0,"",'[1]TASA DE FALLA'!DX38) ->  | S38: =+IF('[1]TASA DE FALLA'!DY38=0,"",'[1]TASA DE FALLA'!DY38) -> 
C39: ='[1]TASA DE FALLA'!C39 -> 34 | D39: ='[1]TASA DE FALLA'!D39 -> PTO. HERNANDEZ - RINCON DE LOS SAUCES | E39: ='[1]TASA DE FALLA'!E39 -> 132 | F39: ='[1]TASA DE FALLA'!F39 -> 21 | G39: ='[1]TASA DE FALLA'!G39 -> L | H39: =+IF('[1]TASA DE FALLA'!DN39=0,"",'[1]TASA DE FALLA'!DN39) ->  | I39: =+IF('[1]TASA DE FALLA'!DO39=0,"",'[1]TASA DE FALLA'!DO39) -> 1 | J39: =+IF('[1]TASA DE FALLA'!DP39=0,"",'[1]TASA DE FALLA'!DP39) ->  | K39: =+IF('[1]TASA DE FALLA'!DQ39=0,"",'[1]TASA DE FALLA'!DQ39) ->  | L39: =+IF('[1]TASA DE FALLA'!DR39=0,"",'[1]TASA DE FALLA'!DR39) ->  | M39: =+IF('[1]TASA DE FALLA'!DS39=0,"",'[1]TASA DE FALLA'!DS39) ->  | N39: =+IF('[1]TASA DE FALLA'!DT39=0,"",'[1]TASA DE FALLA'!DT39) ->  | O39: =+IF('[1]TASA DE FALLA'!DU39=0,"",'[1]TASA DE FALLA'!DU39) ->  | P39: =+IF('[1]TASA DE FALLA'!DV39=0,"",'[1]TASA DE FALLA'!DV39) ->  | Q39: =+IF('[1]TASA DE FALLA'!DW39=0,"",'[1]TASA DE FALLA'!DW39) ->  | R39: =+IF('[1]TASA DE FALLA'!DX39=0,"",'[1]TASA DE FALLA'!DX39) ->  | S39: =+IF('[1]TASA DE FALLA'!DY39=0,"",'[1]TASA DE FALLA'!DY39) -> 
H40: =+IF('[1]TASA DE FALLA'!DN40=0,"",'[1]TASA DE FALLA'!DN40) ->  | I40: =+IF('[1]TASA DE FALLA'!DO40=0,"",'[1]TASA DE FALLA'!DO40) ->  | J40: =+IF('[1]TASA DE FALLA'!DP40=0,"",'[1]TASA DE FALLA'!DP40) ->  | K40: =+IF('[1]TASA DE FALLA'!DQ40=0,"",'[1]TASA DE FALLA'!DQ40) ->  | L40: =+IF('[1]TASA DE FALLA'!DR40=0,"",'[1]TASA DE FALLA'!DR40) ->  | M40: =+IF('[1]TASA DE FALLA'!DS40=0,"",'[1]TASA DE FALLA'!DS40) ->  | N40: =+IF('[1]TASA DE FALLA'!DT40=0,"",'[1]TASA DE FALLA'!DT40) ->  | O40: =+IF('[1]TASA DE FALLA'!DU40=0,"",'[1]TASA DE FALLA'!DU40) ->  | P40: =+IF('[1]TASA DE FALLA'!DV40=0,"",'[1]TASA DE FALLA'!DV40) ->  | Q40: =+IF('[1]TASA DE FALLA'!DW40=0,"",'[1]TASA DE FALLA'!DW40) ->  | R40: =+IF('[1]TASA DE FALLA'!DX40=0,"",'[1]TASA DE FALLA'!DX40) ->  | S40: =+IF('[1]TASA DE FALLA'!DY40=0,"",'[1]TASA DE FALLA'!DY40) -> 
E41: Longitud Total | F41: =SUM(F19:F40)-F32 -> 764.005
G42: Indisponibilidades Forzadas | H42: =SUM(H19:H40) -> 1 | I42: =SUM(I19:I40) -> 1 | J42: =SUM(J19:J40) -> 0 | K42: 0 | L42: 0 | M42: 0 | N42: 0 | O42: 1 | P42: 1 | Q42: 0 | R42: 0 | S42: 1
G43: TASA DE FALLA | H43: ='[1]TASA DE FALLA'!DN43 -> 2.36 | I43: ='[1]TASA DE FALLA'!DO43 -> 1.96 | J43: ='[1]TASA DE FALLA'!DP43 -> 1.83 | K43: ='[1]TASA DE FALLA'!DQ43 -> 1.57 | L43: ='[1]TASA DE FALLA'!DR43 -> 1.44 | M43: ='[1]TASA DE FALLA'!DS43 -> 1.05 | N43: ='[1]TASA DE FALLA'!DT43 -> 1.05 | O43: ='[1]TASA DE FALLA'!DU43 -> 1.05 | P43: ='[1]TASA DE FALLA'!DV43 -> 1.05 | Q43: ='[1]TASA DE FALLA'!DW43 -> 1.05 | R43: ='[1]TASA DE FALLA'!DX43 -> 0.52 | S43: ='[1]TASA DE FALLA'!DY43 -> 0.52 | T43: ='[1]TASA DE FALLA'!DZ43 -> 0.65
H45: TASA DE FALLA | J45: =+T43 -> 0.65 | L45: SALIDAS x AÑO / 100 km

Sheet DATO
A1: Mes | B1: Mes | C1: Dia | D1: Año | F1: E.N.R.E.
A2: enero | B2: 01 | C2: 31 | D2: 2006
A3: febrero | B3: 02 | C3: =IF(MOD(E14,4)=0,29,28) -> 29 | D3: =+D2+1 -> 2007
A4: marzo | B4: 03 | C4: 31 | D4: 2008
A5: abril | B5: 04 | C5: 30 | D5: 2009
A6: mayo | B6: 05 | C6: 31 | D6: 2010
A7: junio | B7: 06 | C7: 30 | D7: 2011
A8: julio | B8: 07 | C8: 31 | D8: 2012
A9: agosto | B9: 08 | C9: 31 | D9: 2013
A10: septiembre | B10: 09 | C10: 30 | D10: 2014
A11: octubre | B11: 10 | C11: 31 | D11: 2015
A12: noviembre | B12: 11 | C12: 30 | D12: 2016
A13: diciembre | B13: 12 | C13: 31 | I13: Total
A14: 11 | B14: 1 | C14: =CELL("CONTENIDO",OFFSET(A1,B14,0)) -> enero | D14: =CELL("CONTENIDO",OFFSET(C1,B14,0)) -> 31 | E14: =CELL("CONTENIDO",OFFSET(D1,A14,0)) -> 2016 | F14: ="Desde el 01 al " & D14 & " de " & C14 & " de " & E14 -> Desde el 01 al 31 de enero de 2016 | G14: =CELL("CONTENIDO",OFFSET(B1,B14,0)) -> 01 | H14: =RIGHT(E14,2) -> 16 | I14: B14
B15: ="\\rugor\files\Transporte\Transporte\AA PROCESO AUT ARCHIVOS J\EPEN_TRONCAL\" &E14 -> \\rugor\files\Transporte\Transporte\AA PROCESO AUT ARCHIVOS J\EPEN_TRONCAL\2016 | G15: ="J"&G14&H14&"PEN" -> J0116PEN
B16: ="\\rugor\files\Transporte\transporte\AA PROCESO AUT\INTERCAMBIO\" &H14&G14 -> \\rugor\files\Transporte\transporte\AA PROCESO AUT\INTERCAMBIO\1601
A17: Hoja | B17: FilaInicio | C17: FilasPlantilla | D17: Columnas | E17: NombreHoja | F17: OrigenDeDatos | G17: Col00 | H17: Col01 | I17: Col02 | J17: Col03 | K17: Col04 | L17: Col05 | M17: Col06 | N17: Col07 | O17: Col08 | P17: Col09 | Q17: Col10 | R17: Col11 | S17: Col12 | T17: Col13 | U17: Col14 | V17: Col15 | W17: FILHTOTAL | X17: COLHTOTAL | Y17: FILHCALC | Z17: COLHCALC | AA17: FILTRANSP | AB17: COLTRANSP | AC17: COL TSAL
A18: MODELO L | B18: 19 | C18: 19 | D18: 12 | E18: ="LI-" & $G$14 -> LI-01 | F18: EPEN_INDISPONIBILIDADES_LINEAS_EPEN.XLS | G18: 3 | H18: 5 | I18: 4 | J18: 6 | K18: 7 | L18: 8 | M18: 0 | N18: 10 | O18: 11 | P18: 14 | Q18: 16 | R18: 27 | S18: 15 | T18: 0 | U18: 0 | V18: 0 | W18: 18 | X18: 9 | Y18: 40 | Z18: 28 | AA18: 17 | AB18: 28 | AC18: 14
A19: MODELO T | B19: 22 | C19: 19 | D19: 13 | E19: ="T-" & $G$14 -> T-01 | F19: EPEN_INDISPONIBILIDADES_TRAFOS_EPEN.XLS | G19: 3 | H19: 5 | I19: 4 | J19: 6 | K19: 7 | L19: 8 | M19: 9 | N19: 11 | O19: 12 | P19: 15 | Q19: 16 | R19: 18 | S19: 28 | T19: 17 | U19: 0 | V19: 0 | W19: 22 | X19: 9 | Y19: 43 | Z19: 29 | AA19: 20 | AB19: 29 | AC19: 15
A20: MODELO S | B20: 21 | C20: 19 | D20: 10 | E20: ="SA-" & $G$14 -> SA-01 | F20: EPEN_INDISPONIBILIDADES_SALIDAS_EPEN.XLS | G20: 3 | H20: 5 | I20: 4 | J20: 6 | K20: 7 | L20: 8 | M20: 10 | N20: 11 | O20: 14 | P20: 15 | Q20: 21 | R20: 0 | S20: 0 | T20: 0 | U20: 0 | V20: 0 | W20: 24 | X20: 9 | Y20: 42 | Z20: 22 | AA20: 19 | AB20: 22 | AC20: 14
A21: MODELO VST | B21: 19 | C21: 24 | D21: 4 | E21: ="CAUSAS-VST-" & $G$14 -> CAUSAS-VST-01 | F21: EPEN_CAUSAS_VST.XLS | G21: 3 | H21: 4 | I21: 5 | J21: 6 | K21: 7 | L21: 0 | M21: 0 | N21: 0 | O21: 0 | P21: 0 | Q21: 0 | R21: 0 | S21: 0 | T21: 0 | U21: 0 | V21: 0 | W21: 999 | X21: 999 | Y21: 0 | Z21: 0 | AA21: 0 | AB21: 0 | AC21: 0
